Cogmind - Beta 17 @@@ ROGUE MODE // 2026.07.22 @ 02:00:02 Player: Artackni Result: Destroyed by Hotshot with Improved Heavy Laser Performance ------------- Evolutions (7) 3500 Regions Visited (19) 3800 Robots Destroyed (510) 2550 Value Destroyed (27994) 27994 Prototype IDs (126) 2520 Alien Tech Used (7) 1400 Bonus (40319) 40319 TOTAL SCORE: 82083 Bonus ------- High Alert Combat Kills 9755 Follower Combat Kills 843 Prayed to X0-1V1 5000 Major X0-1V1 Interference 19950 Met Zhirov 300 Met Warlord at Base 500 MAIN.C Attacked Warlord 500 Warlord Defense Kills 4086 Friendly Fire -615 Cogmind --------- Core Integrity 0/1100 Matter 300/300 Energy 100/100 System Corruption 16% Temperature Cool (36) Movement Core (50) Location -3/Protoforge Parts ------- > --- POWER (2) -------- (None) > --- PROPULSION (8) --- (None) > --- UTILITY (8) ------ Concept Phasing Heat Sink Concept Phasing Heat Sink > --- WEAPON (6) ------- Chaos Jack > --- INVENTORY (6) ---- Protomatter-99 Concept Antigrav Storage Unit Advanced Point Defense System Concept Antimissile System Subatomic Replicator Heavy Shock Bomb Launcher Peak State ------------ > --- POWER ------------ Graviton-Antimatter Reactor > --- PROPULSION ------- Biometal-Armored Exoskeleton > --- UTILITY ---------- Armored Scrap Engine Coolant Network High-capacity Storage Unit Experimental Core Analyzer Experimental Phase Shifter Advanced Force Field > --- WEAPON ----------- Hvy. Thermal Nova Construct/C Enhanced Force Lance > --- INVENTORY -------- Protomatter Advanced Cooling System Experimental Coolant Injector Advanced Energy Well Experimental Optical Array Experimental Core Analyzer Improved Weapon Cycler Graphene Brace Advanced Force Field Advanced Point Defense System Advanced Hacking Suite Dimensional Node Initializer Dimensional Node Initializer Transdimensional Reconstructor High-powered Transdimensional Reconstructor Subatomic Replicator Terrabomb Vortex Cannon Vortex Cannon Hypercooled Linear Accelerator Heavy Shock Bomb Launcher [Rating: 199] Favorites ----------- Power Constructs Engine Improved Deuterium Engine Power Core Reinforced Fission Core Reactor Constructs Propulsion Constructs Treads Light Treads Leg Constructs Wheel Wheel Hover Unit Airjet Flight Unit Cooled VTOL Module Utility High-capacity Storage Unit Device Armored Scrap Engine Storage High-capacity Storage Unit Processor Experimental Core Analyzer Hackware Hacking Suite Protection Scrap Shield Artifact Phase Armor Weapon Constructs Energy Gun Makeshift Laser Energy Cannon Constructs Ballistic Gun Assault Rifle Ballistic Cannon Hypervelocity Mass Driver Launcher Heavy Shock Bomb Launcher Special Weapon Mining Laser Impact Weapon Power Maul Slashing Weapon Scythe Piercing Weapon Enhanced Force Lance Special Melee Weapon Chaos Jack Build | -11 -10 -10 -8 -7 -7 -7 -5 -5 -5 -5 -4 -4 -4 -4 -4 -3 -3 -3 -3 ------- Run | Yrd Mat Sub Mat Fac Sto Rec Fac Upp Upp Zhi Pro Fac Upp Upp War Pro Res Qua Frg Slots Evolved 14 | . . . 4 2 . . 4 . . . . 2 . . . . 2 . . Power . | . . . . . . . . . . . . . . . . . . . . Propulsion 5 | . . . 3 1 . . . . . . . . . . . . 1 . . Utility 7 | . . . 1 . . . 3 . . . . 2 . . . . 1 . . Weapon 2 | . . . . 1 . . 1 . . . . . . . . . . . . Parts Attached 213 | 7 6 26 24 41 3 5 12 4 1 3 1 16 . 3 14 . 10 19 18 Power 22 | 1 1 2 1 7 2 . . . . . . . . 1 3 . 1 3 . Engine 10 | 1 1 2 1 5 . . . . . . . . . . . . . . . Core 7 | . . . . 2 2 . . . . . . . . . 1 . 1 1 . Reactor 5 | . . . . . . . . . . . . . . 1 2 . . 2 . Propulsion 37 | 2 2 5 15 11 1 1 . . . . . . . . . . . . . Treads 8 | 2 1 . 4 1 . . . . . . . . . . . . . . . Leg 14 | . . . 11 3 . . . . . . . . . . . . . . . Wheel 6 | . 1 5 . . . . . . . . . . . . . . . . . Hover 1 | . . . . 1 . . . . . . . . . . . . . . . Flight 8 | . . . . 6 1 1 . . . . . . . . . . . . . Utility 105 | 2 2 9 4 9 . 1 11 4 . 2 . 14 . 2 10 . 7 11 17 Device 77 | 1 1 5 3 5 . 1 10 3 . 1 . 11 . 2 7 . 7 7 13 Storage 8 | 1 1 . 1 1 . . . 1 . . . 2 . . . . . . 1 Processor 7 | . . . . 1 . . 1 . . . . 1 . . 1 . . 2 1 Hackware 2 | . . . . 2 . . . . . . . . . . . . . . . Protection 10 | . . 4 . . . . . . . 1 . . . . 2 . . 1 2 Artifact 1 | . . . . . . . . . . . . . . . . . . 1 . Weapon 49 | 2 1 10 4 14 . 3 1 . 1 1 1 2 . . 1 . 2 5 1 Energy Gun 8 | . . 2 . . . 1 . . . 1 . 2 . . 1 . 1 . . Energy Cannon 8 | . . . . 4 . . . . . . . . . . . . . 3 1 Ballistic Gun 10 | 2 . 3 2 . . . 1 . . . . . . . . . 1 1 . Ballistic Cannon 3 | . . 1 . . . . . . 1 . . . . . . . . 1 . Launcher 6 | . 1 1 1 1 . 1 . . . . 1 . . . . . . . . Special Weapon 1 | . . 1 . . . . . . . . . . . . . . . . . Impact Weapon 11 | . . . 1 9 . 1 . . . . . . . . . . . . . Slashing Weapon 2 | . . 2 . . . . . . . . . . . . . . . . . Piercing Weapon . | . . . . . . . . . . . . . . . . . . . . Special Melee Weapon . | . . . . . . . . . . . . . . . . . . . . Unidentified Prototypes 45 | . 1 2 2 4 1 1 1 . . 2 . 5 . . 5 . 2 12 7 Corrupted Parts 1 | . . . . 1 . . . . . . . . . . . . . . . System Corruption 11 | . . . . 11 . . . . . . . . . . . . . . . Parts Lost 71 | . 2 9 6 17 . 6 3 . . . . 3 . . 2 . 2 . 21 Power 10 | . 1 . 1 4 . 1 . . . . . 1 . . . . . . 2 Propulsion 24 | . 1 3 4 6 . 3 . . . . . . . . . . . . 7 Utility 27 | . . 4 . 4 . 2 3 . . . . 2 . . 2 . 2 . 8 Weapon 10 | . . 2 1 3 . . . . . . . . . . . . . . 4 Highest Loss Streak 9 | . 1 3 4 9 . 3 2 . . . . 1 . . 1 . 1 . 6 To Critical Strikes 7 | . . . . 2 . . . . . . . 1 . . . . . . 4 Average Backups 15 | 2 7 10 17 19 6 8 17 20 21 20 18 19 20 20 19 20 19 19 18 Power . | . . . . . 1 . . . . . . . . . . . . . . Propulsion . | 1 1 . . . . 1 3 2 2 2 1 1 1 1 1 2 2 . . Utility 8 | . 3 4 9 10 4 3 6 11 14 13 13 15 15 15 14 14 13 10 10 Weapon 4 | . 1 4 7 8 1 4 7 5 4 2 1 1 2 2 2 3 3 3 2 Tool/Special . | . . . . . . . . . . . . . . . . . . . . Unused Backups 92 | . . 18 4 20 . 7 7 4 1 4 1 4 . . 5 . 3 5 9 Power 2 | . . . . 2 . . . . . . . . . . . . . . . Propulsion 15 | . . 5 . . . . 4 . 1 1 1 . . . 1 . . 2 . Utility 44 | . . 5 1 11 . 2 1 2 . 2 . 4 . . 3 . 2 3 8 Weapon 28 | . . 8 3 7 . 5 2 2 . 1 . . . . . . . . . Tool/Special 3 | . . . . . . . . . . . . . . . 1 . 1 . 1 Average Slot Usage (%) 63 | . 99 89 89 84 100 53 43 47 46 49 41 47 47 50 49 50 48 46 42 Engine 5 | . 13 13 9 9 7 5 1 . . . . . . . . . . . . Core 1 | . . . 1 . 7 2 3 . . . . . . . . 3 . 1 . Reactor 2 | . . . . . . . . 4 5 5 5 4 5 8 6 6 4 5 3 Treads 3 | . 21 3 7 1 . 1 . . . . . 1 5 5 1 . . 2 . Leg 6 | . . . 29 31 . 1 2 4 5 5 5 3 . . 1 . . . 3 Wheel 3 | . 6 20 1 . . . . . . . . . . . . . . . . Flight 2 | . . . . 3 43 12 1 . . . . . . . 1 4 . . . Device 15 | . 14 13 18 13 7 5 18 21 17 16 17 22 21 21 17 16 22 19 18 Storage 5 | . 14 7 9 6 . 3 5 5 5 5 5 5 5 5 5 5 4 4 3 Processor 1 | . . . . . . 1 . . . . . 2 5 5 6 5 4 4 4 Protection 1 | . . 7 . . . . . . . . . . . . . 3 . . . Energy Cannon 1 | . . . . 1 . 1 1 1 . 4 5 2 . . . 1 1 . 2 Ballistic Gun 2 | . 27 6 2 . . . . 1 . . . . . . . . . . . Ballistic Cannon 2 | . . . . . . 2 3 3 10 6 . 2 5 5 5 3 3 3 1 Impact Weapon 1 | . . . . 10 15 3 . . . . . . . . . . . . . Slashing Weapon 1 | . . 6 8 . . . . . . . . . . . . . . . . Peak Build Rating 199 | 7 20 35 52 83 51 77 110 131 126 134 127 140 128 135 153 140 172 199 193 Average Rating 90 | 5 8 22 44 62 47 56 90 120 124 128 112 129 128 133 138 138 145 177 161 On Entrance 94 | . 7 20 29 52 43 51 74 107 116 126 127 111 128 128 135 140 139 172 193 Avg Prop Armor Cover (%) 6 | . 12 4 6 8 4 3 . . . . . . . . . . . . . Naked Turns 13 | . . . . 13 . . . . . . . . . . . . . . . Heaviest Build 146 | 12 31 46 54 112 23 75 106 92 92 105 92 99 92 104 105 88 114 146 137 Greatest Support 339 | 40 40 40 85 123 26 236 253 253 212 241 241 254 254 254 274 286 288 339 196 Greatest Overweight (x) 4 | . 2 4 3 1 . 1 . . . . . . . . . . . . 1 Average Overweight (x) . | . . 1 . . . . . . . . . . . . . . . . . Largest Inventory Capacity 26 | 8 15 16 21 26 6 21 21 21 21 21 21 21 21 21 21 21 21 21 26 Average Capacity 17 | 7 14 11 17 19 6 13 21 21 21 21 21 21 21 21 21 21 21 21 21 Most Carried 26 | 4 13 16 21 26 6 14 21 21 21 21 21 21 21 21 21 21 21 21 23 Average Carried 16 | 2 7 10 17 19 6 8 18 20 21 20 19 20 21 21 20 20 20 20 19 Final Capacity 21 | 8 15 16 21 6 6 21 21 21 21 21 21 21 21 21 21 21 21 21 6 Final Carried 21 | 4 12 16 20 6 6 14 20 21 21 20 21 21 21 21 21 21 21 21 6 Scrap Engine Consumption 192 | . . . . . . 45 17 4 4 4 4 24 . 1 33 . 22 26 8 Constructs Created 11 | . . . . . . 6 1 . . . . . . . 1 . 1 2 . Constructs Modified 238 | . . . . . . 88 19 12 1 2 3 11 . . 12 5 12 52 21 Transmogrified Parts 44 | . . . 16 28 . . . . . . . . . . . . . . . Integrity Recovered 1078 | . . . 272 806 . . . . . . . . . . . . . . . Class Distribution -------------------- 50% | Construct 27% | Mutant 3% | Sprinter 3% | Hauler-Mutant 3% | Scavenger-Mutant Dominant Class ---------------- Mutant | -10/Materials Mutant | -10/Subcaves Scavenger-Mutant | -8/Materials Mutant | -7/Factory Hacker-Sprinter | -7/Storage Construct | -7/Recycling Construct | -5/Factory Construct | -5/Upper Caves Construct | -5/Upper Caves Construct | -5/Zhirov Construct | -4/Proximity Caves Construct | -4/Factory Construct | -4/Upper Caves Construct | -4/Upper Caves Construct | -4/Warlord Scavenger-Construct | -3/Proximity Caves Construct | -3/Research Construct | -3/Quarantine Construct | -3/Protoforge Resources | -11 -10 -10 -8 -7 -7 -7 -5 -5 -5 -5 -4 -4 -4 -4 -4 -3 -3 -3 -3 ----------- Run | Yrd Mat Sub Mat Fac Sto Rec Fac Upp Upp Zhi Pro Fac Upp Upp War Pro Res Qua Frg Matter Collected 12017 | 350 267 1413 466 744 80 1186 1586 451 113 84 57 481 . 271 981 . 1073 1102 1312 Remotely . | . . . . . . . . . . . . . . . . . . . . Salvage Created 26899 | 204 780 919 1150 2686 93 2478 2427 638 350 35 403 2607 . 343 2033 375 1839 2623 4916 Parts 1212 | 23 42 70 62 96 2 85 101 31 10 . 21 104 . 15 75 16 94 154 211 Haulers Intercepted 10 | . 2 . . 1 . 2 . . . . . 2 . . . . 2 1 . Recyclers Shooed 4 | . . . . . . 1 3 . . . . . . . . . . . . Parts Field Recycled . | . . . . . . . . . . . . . . . . . . . . Retrieved Matter . | . . . . . . . . . . . . . . . . . . . . Parts Self-Destructed 111 | . . 42 . . . . . 17 8 . 16 . . 17 . 11 . . . Prevented 8 | . . . . . . . . . . . 3 . . . . 5 . . . Parts Restored . | . . . . . . . . . . . . . . . . . . . . Kills | -11 -10 -10 -8 -7 -7 -7 -5 -5 -5 -5 -4 -4 -4 -4 -4 -3 -3 -3 -3 ------- Run | Yrd Mat Sub Mat Fac Sto Rec Fac Upp Upp Zhi Pro Fac Upp Upp War Pro Res Qua Frg Combat Hostiles Destroyed 417 | . 13 31 19 42 . 23 38 10 6 . 8 39 . 5 29 9 24 35 86 Melee 45 | . . 10 19 13 . 3 . . . . . . . . . . . . . Guns 24 | . 10 5 . . . 6 . . . . . 2 . . . . . 1 . Cannons 272 | . . 3 . 9 . 4 36 10 6 . 3 34 . 4 21 4 24 32 82 AOE 49 | . 3 13 . 6 . 6 . . . . 5 1 . . 5 5 . 2 3 Classes Destroyed 31 | 3 5 2 3 7 . 1 1 1 . . . 1 . . 1 . 1 1 4 Worker 28 | 1 2 . 1 15 . . 3 . . . . 2 . . . . 3 1 . Builder 14 | . . . 1 4 . . 1 . . . . . . . . . 1 . 7 Tunneler 12 | 6 . . . 1 . 1 . . . . . 2 . . . . 2 . . Hauler 10 | . 2 . . 1 . 2 . . . . . 2 . . . . 2 1 . Recycler 21 | 1 2 . 2 2 1 11 1 . . . . . . . . . 1 . . Carrier 1 | . . . . . . . . . . . . . . . . . . . 1 Mechanic 4 | . 1 . . 1 . . . . . . . . . . . . . . 2 Operator 7 | . . . . 2 1 . . . . . . . . . . . . 1 3 Drone 5 | . . . . 1 . . . . . . . . . . . . . . 4 Watcher 8 | . 1 . . 3 . . 1 . . . . 1 . . . . . 1 1 Swarmer 56 | . 3 10 2 3 . 1 5 . 1 . 5 1 . . . 8 14 1 2 Saboteur 1 | . . . . . . . . . . . . . . . . . . . 1 Grunt 142 | . 10 6 14 19 . 2 15 3 4 . 3 14 . 3 13 . 3 11 22 Brawler 9 | . . . . . . . 1 . . . . . . 1 4 . . . 3 Duelist 15 | . . . . 1 . . 4 1 . . . 1 . . 1 . . 2 5 Protector 7 | . . . . 1 . 1 1 . . . . . . . 3 . . . 1 Sentry 28 | . . . 1 5 . 7 4 1 1 . . 1 . . . 1 4 . 3 Demolisher 6 | . . . . . . 2 . . . . . 2 . . 2 . . . . Specialist 8 | . . . 2 . . . . 2 . . . . . . 1 . . . 3 Hunter 19 | . . . . 4 . . 4 . . . . 3 . . . . . 1 7 Programmer 37 | . . . . 7 . 4 4 . . . . 3 . . 2 . 2 7 8 Heavy 2 | . . . . 1 . . . . . . . 1 . . . . . . . Behemoth 3 | . . . . . . . . . . . . . . . . . 2 . 1 Quarantine Guard 12 | . . . . . . . . . . . . . . . . . . 12 . Enhanced Grunt 1 | . . . . . . . . . . 1 . . . . . . . . . Hotshot 14 | . . . . . . . . . . . . . . . . . . . 14 Decapitator 7 | . . . . . . . . . . . . . . . . . . . 7 Immortal 3 | . . . . . . . . . . . . . . . . . . . 3 Overlord 1 | . . . . . . . . . . . . . . . . . . . 1 Striker 3 | . . . . . . . . . . . . . . . 3 . . . . Fortress 1 | . . . . . . . . . . . . . . . . . . 1 . V-Series 2 | . . . . . . . . . . . . . . . . . . . 2 Subdweller 21 | . . 15 . . . 6 . . . . . . . . . . . . . Assembled 13 | . . . . . . . . . . . . 13 . . . . . . . Fireman 4 | . . . . . . . . 3 . . . . . 1 . . . . . Mutant 1 | . . 1 . . . . . . . . . . . . . . . . . Best Kill Streak 33 | 5 4 8 4 12 2 5 7 4 3 . 5 13 . 2 11 5 7 6 33 Combat Bots Only 30 | . 3 8 4 8 . 4 6 4 3 . 5 13 . 2 11 5 5 6 30 Max Kills in Single Turn 6 | 1 2 3 1 6 1 2 2 1 1 1 3 2 . 1 5 3 2 1 2 Gunslinging . | . . . . . . . . . . . . . . . . . . . . Exploded 5 | . 2 3 . 3 . 1 . . . . 3 1 . . 5 3 . 1 2 Melee 1 | . . 1 1 1 . 1 . . . . . . . . . . . . . Uniques/NPCs Destroyed . | . . . . . . . . . . . . . . . . . . . . Combat | -11 -10 -10 -8 -7 -7 -7 -5 -5 -5 -5 -4 -4 -4 -4 -4 -3 -3 -3 -3 -------- Run | Yrd Mat Sub Mat Fac Sto Rec Fac Upp Upp Zhi Pro Fac Upp Upp War Pro Res Qua Frg Hostile Shots Fired 2968 | . 69 137 106 502 . 91 184 45 21 82 47 240 2 53 250 27 129 184 799 Missed 984 | . 20 38 21 179 . 28 62 16 5 9 17 88 1 7 120 13 64 69 227 Deflected 44 | . . . . . . . . . . . . . . . . . . . 44 Hits 1984 | . 49 99 85 323 . 63 122 29 16 73 30 152 1 46 130 14 65 115 572 Melee 91 | . . . . 15 . . 2 1 . . . 20 . . 5 . . 1 47 Projectile 1893 | . 49 99 85 308 . 63 120 28 16 73 30 132 1 46 125 14 65 114 525 AOE 11 | . . 2 . . . 3 . . . . . . . . 3 . . . 3 Critical Strikes 107 | . 1 1 2 13 . 2 7 1 1 1 . 10 . 1 3 . 1 11 52 Part Disruptions 5 | . . . . . . 1 . . . 1 . . . . 1 . . . 2 Damage Taken 35635 | . 658 1365 1466 4497 . 871 2444 320 235 1285 289 2618 13 587 2718 337 1645 2156 12131 Core 3592 | . 133 229 254 600 . 184 254 35 . 11 24 205 . 54 247 . 95 35 1232 Absorbed by Shields 6807 | . . . . 324 . . 104 251 62 242 304 714 14 228 218 . . 1720 2626 Ignored by Resistances 165 | . . 165 . . . . . . . . . . . . . . . . . Regen/Repaired (Parts) 12762 | . . . . . . 178 1620 321 30 492 646 2155 . . 2091 356 1877 1442 1554 Core Remaining (%) 66 | 100 . 58 36 . . 65 . . . . 78 . . . . 62 . . . Volleys Fired 1331 | 20 67 75 4 57 . 115 152 28 21 16 19 129 . 25 95 17 86 149 256 Largest 2 | 2 2 2 1 2 . 2 2 1 1 1 1 2 . 1 2 1 1 2 1 Hottest 368 | 40 40 170 23 100 . 133 200 197 76 76 76 316 . 132 159 224 224 309 368 Shots Fired 1468 | 40 131 81 4 88 . 118 157 28 21 16 19 134 . 25 97 17 86 152 254 Gun 283 | 40 128 34 4 . . 61 7 . . . . 7 . . . . . 2 . Cannon 1115 | . . 11 . 81 . 49 150 28 21 16 15 122 . 25 93 14 86 150 254 Launcher 67 | . 3 34 . 6 . 8 . . . . 4 5 . . 4 3 . . . Special 3 | . . 2 . 1 . . . . . . . . . . . . . . . Kinetic 869 | 40 128 25 4 28 . 44 101 24 . . . 53 . . 93 4 84 133 108 Thermal 516 | . . 22 . 54 . 61 56 4 21 16 15 76 . 25 . 10 2 19 135 Explosive 45 | . 3 34 . . . 8 . . . . . . . . . . . . . Electromagnetic 27 | . . . . 6 . 5 . . . . 4 5 . . 4 3 . . . Entropic 11 | . . . . . . . . . . . . . . . . . . . 11 Robot Hit Streak 48 | 5 21 14 1 8 . 48 16 13 6 7 5 13 . 6 8 3 13 19 16 Robot Miss Streak 6 | 2 6 2 1 5 . 2 4 3 3 4 3 3 . 3 3 2 5 2 3 Penetration Max 1 | . . . . . . 1 1 1 . . . 1 . . 1 . 1 1 . Secondary Targets . | . . . . . . . . . . . . . . . . . . . . Shots Hit Robots 1202 | 22 86 62 50 144 4 123 125 19 15 9 10 90 . 18 66 10 55 110 184 Core Hits 641 | 12 37 40 21 56 . 51 84 11 8 2 11 67 . 5 53 9 32 47 95 Critical Kills 44 | . . . . 5 . 5 . . . . 2 9 . . 5 . . 4 14 Critical Parts Destroyed 71 | . . . . 21 . 12 . . . . . 23 . 2 1 . . 3 9 Critical Strikes 143 | . . 6 7 27 . 27 2 . . . 2 32 . 2 6 . . 7 25 Burn 13 | . . 2 . . . 9 2 . . . . . . . . . . . . Destroy 87 | . . . . . . 15 . . . . 2 32 . 2 6 . . 7 23 Blast 4 | . . 3 . 1 . . . . . . . . . . . . . . . Smash 29 | . . . . 26 . 3 . . . . . . . . . . . . . Sever 8 | . . 1 7 . . . . . . . . . . . . . . . . Sunder 2 | . . . . . . . . . . . . . . . . . . . 2 Melee Attacks 321 | . . 42 75 163 6 35 . . . . . . . . . . . . . Impact 204 | . . . . 163 6 35 . . . . . . . . . . . . . Slashing 117 | . . 42 75 . . . . . . . . . . . . . . . . Piercing . | . . . . . . . . . . . . . . . . . . . . Sneak Attacks 40 | . . . 7 26 2 5 . . . . . . . . . . . . . Combat Hostiles 5 | . . . . 3 . 2 . . . . . . . . . . . . . Follow-up Attacks 13 | . . . . 11 . 2 . . . . . . . . . . . . . Martial Strikes 1 | . . . . 1 . . . . . . . . . . . . . . . Damage Inflicted 98505 | 239 1101 3127 1735 8009 326 4210 7265 1542 870 502 827 7362 . 1243 7297 822 7227 15306 29495 Guns 3115 | 239 887 528 27 . . 1039 137 . . . . 195 . . . . . 63 . Cannons 78839 | . . 443 . 1507 . 1322 6874 1542 870 502 562 6237 . 1243 5894 592 6798 14965 29488 Explosions 7038 | . 214 1379 . 1314 . 429 254 . . . 265 930 . . 1357 230 390 276 . Melee 9419 | . . 777 1708 5188 326 1420 . . . . . . . . . . . . . Ramming 55 | . . . . . . . . . . . . . . . 46 . . 2 7 Kinetic 52039 | 239 887 511 27 596 . 952 3880 1320 . . . 2484 . . 5894 242 6653 12919 15435 Thermal 29955 | . . 460 . 1259 . 1185 3385 222 870 502 562 4046 . 1243 204 350 145 2109 13413 Explosive 2773 | . 214 1379 . . . 429 . . . . . 85 . . . . 390 276 . Electromagnetic 3585 | . . . . 966 . 224 . . . . 265 747 . . 1153 230 . . . Impact 6934 | . . . . 5188 326 1420 . . . . . . . . . . . . . Slashing 2524 | . . 777 1708 . . . . . . . . . . . . . 39 . . Piercing . | . . . . . . . . . . . . . . . . . . . . Entropic 640 | . . . . . . . . . . . . . . . . . . . 640 Highest Corruption 32 | . . 32 13 25 . 4 4 4 4 11 11 6 16 17 17 . 17 17 16 Average Corruption 6 | . . 12 13 2 . 2 3 4 4 6 11 5 16 16 17 . 8 4 6 Corruption Purged . | . . . . . . . . . . . . . . . . . . . . Corruption Blocked . | . . . . . . . . . . . . . . . . . . . . Effects 295 | . . 52 12 35 . 17 18 5 5 7 4 27 6 10 2 . 14 28 53 Message Errors 83 | . . 12 3 11 . 2 3 3 1 2 1 5 3 3 . . 3 11 20 Matter Fused 78 | . . 17 6 10 . 6 3 1 3 1 . 9 1 3 . . 2 3 13 Heat Flow Errors 32 | . . 5 1 5 . 3 1 . . 1 1 6 . . 1 . . 2 6 Energy Discharges 33 | . . 6 2 2 . . 2 . . 1 . 3 . 2 . . 4 6 5 Parts Rejected 7 | . . . . 2 . . 2 . 1 . . . . 1 . . . . 1 Parts Fused 1 | . . . . . . . . . . . . . . . . . . 1 . Data Loss (minor) 30 | . . 3 . 2 . 4 4 1 . 2 1 2 1 1 1 . 2 5 1 Data Loss (major) 11 | . . 4 . . . 1 1 . . . 1 . . . . . 1 . 3 Misfires 1 | . . . . . . 1 . . . . . . . . . . . . . Alerts 7 | . . 2 . 2 . . . . . . . . 1 . . . 1 . 1 Misdirections 3 | . . . . 1 . . . . . . . . . . . . 1 . 1 Weapon Failures 9 | . . 3 . . . . 2 . . . . 2 . . . . . . 2 Overload Shots 17 | . . 15 . . . . . . . . . 2 . . . . . . . Effects 2 | . . 1 . . . . . . . . . 1 . . . . . . . Energy Bleed 1 | . . 1 . . . . . . . . . . . . . . . . . Heat Surge 1 | . . . . . . . . . . . . 1 . . . . . . . Overflow Damage 10504 | . 18 67 54 2231 167 532 197 148 21 24 1 413 . 56 669 75 812 2087 2932 Projectiles 7457 | . . 17 . 29 . 53 197 148 21 24 . 410 . 56 669 75 773 2053 2932 Explosions 103 | . 18 . . 8 . . . . . . 1 3 . . . . 39 34 . Melee 2944 | . . 50 54 2194 167 479 . . . . . . . . . . . . . Knockbacks 195 | . . 2 . 24 . 14 27 7 . . . 21 . . 35 2 9 22 32 Impact 23 | . . . . 21 . 2 . . . . . . . . . . . . . Kinetic 145 | . . 2 . 1 . 10 24 6 . . . 19 . . 29 1 8 19 26 Secondary 27 | . . . . 2 . 2 3 1 . . . 2 . . 6 1 1 3 6 Self-Inflicted Damage 604 | . 29 55 . 163 . . 66 . . . . 32 . . 23 . 51 185 . Shots 17 | . 2 3 . 6 . . 1 . . . . 2 . . . . 1 2 . Rammed 2 | . . . . . . . . . . . . . . . 1 . . . 1 Targets Rammed 4 | . . . . . . . . . . . . . . . 1 . . 1 2 Kicked 1 | . . . . . . . . . . . . . . . . . . . 1 Crushed 1 | . . . . . . . . . . . . . . . . . . 1 . Highest Temperature 640 | . 27 397 383 401 4 357 374 371 44 290 193 356 . 132 152 308 462 320 640 Average Temperature 110 | . 7 117 146 93 2 89 122 150 18 112 74 80 . 60 49 112 129 115 150 Received Heat Transfer 6376 | . 282 201 639 784 . 117 576 139 93 399 9 490 . 306 449 18 508 92 1274 Effects 28 | . . 3 2 1 . . 4 . . . . . . . . . 3 3 12 Shutdowns 6 | . . 1 1 1 . . . . . . . . . . . . . 1 2 Energy Bleed 6 | . . 1 1 . . . . . . . . . . . . . 1 2 1 Interference 12 | . . 1 . . . . 3 . . . . . . . . . 2 . 6 Matter Decay 2 | . . . . . . . 1 . . . . . . . . . . . 1 Damage (minor) 1 | . . . . . . . . . . . . . . . . . . . 1 Damage (core) 1 | . . . . . . . . . . . . . . . . . . . 1 Siege Activations . | . . . . . . . . . . . . . . . . . . . . Martial Activations 1 | . . . . 1 . . . . . . . . . . . . . . . Total Turns 6 | . . . . 6 . . . . . . . . . . . . . . . Longest Duration 6 | . . . . 6 . . . . . . . . . . . . . . . Shielding Activations 8 | . . . . . . . . . . . . . . . . . . 1 7 Total Turns 266 | . . . . . . . . . . . . . . . . . . 14 252 Longest Duration 124 | . . . . . . . . . . . . . . . . . . 14 124 Robots Disrupted 3 | . . . . . . . . . . . . 3 . . . . . . . Combat Hostiles 1 | . . . . . . . . . . . . 1 . . . . . . . Robots Corrupted 39 | . . . . 26 . 5 . . . . . 3 . . 3 . . . 2 Combat Hostiles 24 | . . . . 14 . 4 . . . . . 3 . . 3 . . . . Parts Fried 68 | . . . . 38 2 10 . . . . 4 3 . . 10 . . . 1 Impact Corruptions 118 | . . . . 83 3 24 . . . . . . . . 1 . . 2 5 Robots Melted 3 | . . . . . . . 2 . . . . . . 1 . . . . . Combat Hostiles 3 | . . . . . . . 2 . . . . . . 1 . . . . . Parts Melted 37 | . . 3 2 1 . 6 20 . . . . 1 . . 3 . . 1 . Heat Transferred 18316 | . . 911 . 1428 . 2679 4577 111 555 249 296 2324 . 666 350 250 100 592 3228 Parts Sabotaged . | . . . . . . . . . . . . . . . . . . . . Parts Stolen 1 | . . . . 1 . . . . . . . . . . . . . . . Parts Stripped . | . . . . . . . . . . . . . . . . . . . . Power Chain Reactions 9 | . . . . 3 . . 1 . . . 1 2 . . 2 . . . . Alert | -11 -10 -10 -8 -7 -7 -7 -5 -5 -5 -5 -4 -4 -4 -4 -4 -3 -3 -3 -3 ------- Run | Yrd Mat Sub Mat Fac Sto Rec Fac Upp Upp Zhi Pro Fac Upp Upp War Pro Res Qua Frg Maximum Alert Level 5 | . . . 2 4 2 2 4 . . . . 4 . . . . 3 4 5 Low Security (%) 17 | 100 100 . 8 5 . 3 9 . . . . 34 . . . . 31 . . Level 1 24 | . . . 18 44 . 82 1 . . . . 2 . . . . 9 . . Level 2 16 | . . . 72 27 100 13 9 . . . . 2 . . . . 13 12 7 Level 3 24 | . . . . 17 . . 54 . . . . 14 . . . . 45 86 6 Level 4 11 | . . . . 5 . . 25 . . . . 44 . . . . . . 36 Level 5 6 | . . . . . . . . . . . . . . . . . . . 49 High Security . | . . . . . . . . . . . . . . . . . . . . Max Security . | . . . . . . . . . . . . . . . . . . . . Peak Influence 2189 | 10 130 . 488 1161 537 464 1584 . . . . 1417 . . . . 878 1103 2189 Initial 620 | . . . 65 197 527 207 164 . . . . 8 . . . . 70 461 620 Average 670 | 1 34 . 397 512 531 308 938 . . . . 780 . . . . 510 959 1553 Influence Increases 15549 | 40 422 447 1020 2010 25 879 1990 225 130 . 180 1973 . 300 670 245 1226 1336 2431 Destroy 0b10 Robot/C 8220 | . 260 400 520 880 . 360 740 200 120 . 160 660 . 160 520 180 600 700 1760 Destroy 0b10 Robot/NC 670 | 40 40 . 20 155 10 130 35 . . . . 70 . . 15 . 50 20 85 Destroy Leader 1266 | . 46 10 80 250 . . 162 10 10 . 20 140 . . . 20 102 154 262 Allied During Kill 365 | . . 7 40 54 . 45 . . . . . 59 . 20 . . 63 42 35 Successful Hack 37 | . 9 . 18 . . 10 . . . . . . . . . . . . . Disable Machine 1395 | . . . 15 75 15 30 270 . . . . 630 . . . . 60 195 105 Anti-Garrison Action 200 | . . . . . . . 200 . . . . . . . . . . . . Destroy Structure 986 | . 22 . 11 53 . 72 334 . . . . 114 . . . . 76 150 154 Advance Influence 50 | . . . . . . . 50 . . . . . . . . . . . . Partial Spotted 90 | . . . 15 15 . 45 . . . . . . . . . . . 15 . Lose Combat Pursuer 1290 | . 45 30 45 390 . 15 45 15 . . . 300 . 120 135 45 15 60 30 Miscellaneous 980 | . . . 256 138 . 172 154 . . . . . . . . . 260 . . Influence Decreases 13456 | 40 347 395 712 1284 654 1137 680 777 317 845 166 570 616 343 978 590 511 1053 1441 Entered New Map 5855 | . . 37 62 238 634 325 160 587 197 845 . 6 526 153 758 450 35 359 483 Time Decay 6291 | 40 337 278 490 716 20 712 490 190 120 . 166 494 90 110 200 140 356 694 648 Lost Part 630 | . 10 20 60 170 . 60 30 . . . . 30 . . 20 . 20 . 210 Lost Ally 680 | . . 60 100 160 . 40 . . . . . 40 . 80 . . 100 . 100 Squads Dispatched 76 | . 2 . 4 30 . . 9 . . . . 6 . . . . 5 2 18 Investigation 11 | . 1 . 1 4 . . 3 . . . . . . . . . . 1 1 Extermination 15 | . . . . 7 . . 2 . . . . 2 . . . . 1 1 2 Reinforcement 30 | . 1 . 3 14 . . 1 . . . . 2 . . . . 3 . 6 Assault 16 | . . . . 2 . . 2 . . . . 2 . . . . 1 . 9 Garrison 4 | . . . . 3 . . 1 . . . . . . . . . . . . Intercept . | . . . . . . . . . . . . . . . . . . . . Searches Triggered . | . . . . . . . . . . . . . . . . . . . . Construction Impeded 5 | . . . . 2 . . 1 . . . . 1 . . . . 1 . . Haulers Reinforced 2 | . . . . . . . . . . . . 1 . . . . 1 . . Active Scanning Responses . | . . . . . . . . . . . . . . . . . . . . Cargo Convoy Interrupts 1 | . . . . 1 . . . . . . . . . . . . . . . Stealth | -11 -10 -10 -8 -7 -7 -7 -5 -5 -5 -5 -4 -4 -4 -4 -4 -3 -3 -3 -3 --------- Run | Yrd Mat Sub Mat Fac Sto Rec Fac Upp Upp Zhi Pro Fac Upp Upp War Pro Res Qua Frg Distress Signals 28 | . . . 1 6 1 1 6 . . . . 2 . . . . 6 . 5 Communications Jammed 33 | . . . . . . . . . . . . 12 . . . . 13 8 . Distress Signals 32 | . . . . . . . . . . . . 11 . . . . 13 8 . Times Spotted 754 | . 24 49 29 100 4 20 60 14 6 3 10 69 1 18 115 11 38 45 138 Peak Tracking Total 18 | . 4 5 6 11 4 4 6 4 3 3 5 7 1 5 18 5 7 4 14 Tactical Retreats 44 | . 2 2 1 13 . 2 1 1 . . . 10 . 3 2 1 1 3 2 Traps | -11 -10 -10 -8 -7 -7 -7 -5 -5 -5 -5 -4 -4 -4 -4 -4 -3 -3 -3 -3 ------- Run | Yrd Mat Sub Mat Fac Sto Rec Fac Upp Upp Zhi Pro Fac Upp Upp War Pro Res Qua Frg Traps Triggered 16 | . 2 . . 5 . . 3 . . . . 2 . . . . . 2 2 Indirectly 1 | . . . . . . . . . . . . 1 . . . . . . . Trap Hack Attempts . | . . . . . . . . . . . . . . . . . . . . Triggered . | . . . . . . . . . . . . . . . . . . . . Disarmed . | . . . . . . . . . . . . . . . . . . . . Reprogrammed . | . . . . . . . . . . . . . . . . . . . . Reused . | . . . . . . . . . . . . . . . . . . . . Traps Extracted . | . . . . . . . . . . . . . . . . . . . . Installed . | . . . . . . . . . . . . . . . . . . . . Triggered . | . . . . . . . . . . . . . . . . . . . . Most Traps Carried 3 | . . . . . . 3 . . . . 2 2 . . . . . . . Machines | -11 -10 -10 -8 -7 -7 -7 -5 -5 -5 -5 -4 -4 -4 -4 -4 -3 -3 -3 -3 ---------- Run | Yrd Mat Sub Mat Fac Sto Rec Fac Upp Upp Zhi Pro Fac Upp Upp War Pro Res Qua Frg Machines Disabled 103 | . . 1 1 5 1 2 18 . . 1 . 42 . . 3 . 5 13 11 Max in Single Turn 9 | . . 1 1 1 1 1 4 . . 1 . 9 . . 1 . 1 2 1 Garrison Access 1 | . . . . . . . 1 . . . . . . . . . . . . Machines Repaired . | . . . . . . . . . . . . . . . . . . . . Machines Dismantled . | . . . . . . . . . . . . . . . . . . . . Machines Sabotaged . | . . . . . . . . . . . . . . . . . . . . Overloaded Fab Kills . | . . . . . . . . . . . . . . . . . . . . Hacking | -11 -10 -10 -8 -7 -7 -7 -5 -5 -5 -5 -4 -4 -4 -4 -4 -3 -3 -3 -3 --------- Run | Yrd Mat Sub Mat Fac Sto Rec Fac Upp Upp Zhi Pro Fac Upp Upp War Pro Res Qua Frg Machines Accessed 42 | . 6 1 6 3 1 7 3 1 1 4 . 1 . . 4 . 1 2 1 Terminals 19 | . 6 . 5 3 1 . . . . . . 1 . . . . . 2 1 Fabricators . | . . . . . . . . . . . . . . . . . . . . Repair Stations 1 | . . . . . . . 1 . . . . . . . . . . . . Recycling Units 7 | . . . . . . 6 1 . . . . . . . . . . . . Scanalyzers . | . . . . . . . . . . . . . . . . . . . . Garrison Access 3 | . . . 1 . . . 1 . . . . . . . . . 1 . . Total Hacks 104 | . 15 1 11 8 2 21 4 1 1 17 . 2 . . 13 . 2 5 1 Successful 66 | . 9 1 3 1 1 11 4 1 1 17 . 1 . . 13 . . 2 1 Failed 38 | . 6 . 8 7 1 10 . . . . . 1 . . . . 2 3 . Catastrophic 7 | . . . 1 3 . 1 . . . . . . . . . . 1 1 . Database Lockouts . | . . . . . . . . . . . . . . . . . . . . Manual 58 | . 16 . 10 5 1 19 2 . . . . . . . . . 2 3 . Terminals 42 | . 15 . 9 8 2 . . . . . . 2 . . . . . 5 1 Fabricators . | . . . . . . . . . . . . . . . . . . . . Repair Stations 1 | . . . . . . . 1 . . . . . . . . . . . . Recycling Units 21 | . . . . . . 19 2 . . . . . . . . . . . . Scanalyzers . | . . . . . . . . . . . . . . . . . . . . Garrison Access 5 | . . . 2 . . . 1 . . . . . . . . . 2 . . Terminal Hacks 41 | . . 1 . 1 1 2 . 1 1 17 . 1 . . 13 . . 2 1 Record 15 | . . . . . . . . . . 5 . . . . 8 . . 2 . Part Schematic 4 | . . . . . . . . . . 4 . . . . . . . . . Robot Analysis 4 | . . . . . . . . . . 4 . . . . . . . . . Prototype ID Bank 8 | . . . . . . . . . . 4 . . . . 4 . . . . Open Door 4 | . . . . . 1 . . 1 1 . . . . . 1 . . . . Branch Access Points 1 | . . . . 1 . . . . . . . . . . . . . . . Locate Traps 1 | . . . . . . . . . . . . 1 . . . . . . . Proto ID Catalog 2 | . . 1 . . . . . . . . . . . . . . . . 1 Release Object 2 | . . . . . . 2 . . . . . . . . . . . . . Fabricator Hacks . | . . . . . . . . . . . . . . . . . . . . Repair Station Hacks . | . . . . . . . . . . . . . . . . . . . . Recycling Unit Hacks 2 | . . . . . . . 2 . . . . . . . . . . . . Retrieve Components 2 | . . . . . . . 2 . . . . . . . . . . . . Scanalyzer . | . . . . . . . . . . . . . . . . . . . . Garrison Access Hacks . | . . . . . . . . . . . . . . . . . . . . Unauthorized Hacks 23 | . 9 . 3 . . 9 2 . . . . . . . . . . . . Terminals 12 | . 9 . 3 . . . . . . . . . . . . . . . . Botnet 2 | . 2 . . . . . . . . . . . . . . . . . . Operators 1 | . 1 . . . . . . . . . . . . . . . . . . Skim 9 | . 6 . 3 . . . . . . . . . . . . . . . . Fabricators . | . . . . . . . . . . . . . . . . . . . . Repair Stations 1 | . . . . . . . 1 . . . . . . . . . . . . Patch 1 | . . . . . . . 1 . . . . . . . . . . . . Recycling Units 9 | . . . . . . 9 . . . . . . . . . . . . . Reject 4 | . . . . . . 4 . . . . . . . . . . . . . Recyclers 1 | . . . . . . 1 . . . . . . . . . . . . . Mask 4 | . . . . . . 4 . . . . . . . . . . . . . Scanalyzers . | . . . . . . . . . . . . . . . . . . . . Garrison Access 1 | . . . . . . . 1 . . . . . . . . . . . . Jam 1 | . . . . . . . 1 . . . . . . . . . . . . Data Cores Recovered 3 | . . . . . . . . . . . . . . . . . . 1 2 Used . | . . . . . . . . . . . . . . . . . . . . Hacking Detections 19 | . 4 . 4 3 1 3 . . . . . . . . . . 1 2 1 Full Trace Events 5 | . 1 . . 2 . 1 . . . . . . . . . . . 1 . Feedback Events . | . . . . . . . . . . . . . . . . . . . . Feedback Blocked . | . . . . . . . . . . . . . . . . . . . . Robot Schematics Acquired . | . . . . . . . . . . . . . . . . . . . . Robots Built . | . . . . . . . . . . . . . . . . . . . . Authchips . | . . . . . . . . . . . . . . . . . . . . Time . | . . . . . . . . . . . . . . . . . . . . Total Robot Build Rating . | . . . . . . . . . . . . . . . . . . . . Part Schematics Acquired 4 | . . . . . . . . . . 4 . . . . . . . . . Parts Built . | . . . . . . . . . . . . . . . . . . . . Authchips . | . . . . . . . . . . . . . . . . . . . . Time . | . . . . . . . . . . . . . . . . . . . . Total Part Build Rating . | . . . . . . . . . . . . . . . . . . . . Part Studies Acquired . | . . . . . . . . . . . . . . . . . . . . Parts Repaired . | . . . . . . . . . . . . . . . . . . . . Time . | . . . . . . . . . . . . . . . . . . . . Parts Recycled . | . . . . . . . . . . . . . . . . . . . . Recycled Matter . | . . . . . . . . . . . . . . . . . . . . Retrieved Matter . | . . . . . . . . . . . . . . . . . . . . Retrieved Components . | . . . . . . . . . . . . . . . . . . . . Parts Scanalyzed . | . . . . . . . . . . . . . . . . . . . . Part Schematics Acquired . | . . . . . . . . . . . . . . . . . . . . Parts Damaged . | . . . . . . . . . . . . . . . . . . . . Bothacking | -11 -10 -10 -8 -7 -7 -7 -5 -5 -5 -5 -4 -4 -4 -4 -4 -3 -3 -3 -3 ------------ Run | Yrd Mat Sub Mat Fac Sto Rec Fac Upp Upp Zhi Pro Fac Upp Upp War Pro Res Qua Frg Used RIF Installer . | . . . . . . . . . . . . . . . . . . . . Robots Hacked . | . . . . . . . . . . . . . . . . . . . . Non-combat . | . . . . . . . . . . . . . . . . . . . . Combat . | . . . . . . . . . . . . . . . . . . . . Robot Hacks Applied . | . . . . . . . . . . . . . . . . . . . . Relay Couplers Released 7 | . . . . . . . . . . . . . . . . . . . 7 Programmers 7 | . . . . . . . . . . . . . . . . . . . 7 Fabnet Peak Effective % . | . . . . . . . . . . . . . . . . . . . . Robots Rewired 3 | . . . . . . 3 . . . . . . . . . . . . . Allies Hacked 2 | . . . . 2 . . . . . . . . . . . . . . . Hacks Repelled . | . . . . . . . . . . . . . . . . . . . . Allies | -11 -10 -10 -8 -7 -7 -7 -5 -5 -5 -5 -4 -4 -4 -4 -4 -3 -3 -3 -3 -------- Run | Yrd Mat Sub Mat Fac Sto Rec Fac Upp Upp Zhi Pro Fac Upp Upp War Pro Res Qua Frg Total Allies 50 | . . 7 4 9 . 4 . . . . . 4 . 4 . . 6 5 7 Largest Group 5 | . . 5 5 4 . 3 . . . . . 2 . 4 . . 5 5 4 Highest-Rated Group 236 | . . 95 103 124 . 83 . . . . . 108 . 100 . . 236 210 168 Highest-Rated Ally 109 | . . 19 21 37 . 55 . . . . . 54 . 25 . . 109 42 99 Total Orders . | . . . . . . . . . . . . . . . . . . . . Ally Attacks 255 | . . 25 44 54 . 15 . . . . . 31 . 27 . . 31 . 28 Total Damage 6483 | . . 404 741 1028 . 324 . . . . . 1476 . 437 . . 1179 . 894 Kills 47 | . . 5 8 4 . 2 . . . . . 13 . 3 . . 7 . 5 Allies Corrupted 2 | . . . . . . . . . . . . 1 . . . . 1 . . Allies Melted 1 | . . . . . . . . . . . . . . 1 . . . . . X0-1V1 Amusement Gains 497 | . 8 20 19 72 . . 25 . . 65 . 87 . . 77 . 5 70 49 Good Acts 216 | . . 41 12 24 3 40 10 4 1 . 3 8 . 5 2 1 11 32 19 Bad Acts 182 | . 1 59 15 24 . 13 12 5 1 . 4 4 2 2 2 . 13 5 20 Intel | -11 -10 -10 -8 -7 -7 -7 -5 -5 -5 -5 -4 -4 -4 -4 -4 -3 -3 -3 -3 ------- Run | Yrd Mat Sub Mat Fac Sto Rec Fac Upp Upp Zhi Pro Fac Upp Upp War Pro Res Qua Frg Active Infowar (turns) 6402 | 113 1479 . 30 431 50 214 . . . . . 1005 185 231 530 . 802 817 515 Optics 2128 | . . . . . . . . . . . . 712 185 231 530 . . . 470 Terrain 30 | . . . 30 . . . . . . . . . . . . . . . . Structural 308 | . . . . . . . . . . . . . . . . . . . 308 Seismic 2287 | 113 1479 . . 431 50 214 . . . . . . . . . . . . . Jamming 3297 | . . . . . . . . . . . . 991 185 231 271 . 802 817 . ECM 2 | . . . . . . . . . . . . 2 . . . . . . . Robot Analysis Total 4 | . . . . . . . . . . 4 . . . . . . . . . Derelict Logs Recovered 9 | . . 3 . . . . . 2 1 . 2 . 1 . . . . . . Drone Launches . | . . . . . . . . . . . . . . . . . . . . Drone Recoveries . | . . . . . . . . . . . . . . . . . . . . Exploration | -11 -10 -10 -8 -7 -7 -7 -5 -5 -5 -5 -4 -4 -4 -4 -4 -3 -3 -3 -3 ------------- Run | Yrd Mat Sub Mat Fac Sto Rec Fac Upp Upp Zhi Pro Fac Upp Upp War Pro Res Qua Frg Turns Passed 25067 | 228 1747 3243 1286 3305 50 3236 1296 380 254 293 528 1566 185 231 892 289 806 2876 2376 Spaces Moved 16801 | 106 748 2324 770 2734 119 1963 1359 422 280 246 257 858 216 194 678 136 713 1688 990 Core 126 | 10 . . . 98 . . . . . . . . . . . . . . 18 Treads 3684 | 96 410 248 134 . . 75 317 9 . . . 363 216 194 343 . 58 983 238 Legs 5661 | . . . 591 1703 . 236 603 333 280 246 257 495 . . 151 . 17 15 734 Wheels 2552 | . 338 2076 45 . . 93 . . . . . . . . . . . . . Hover 1488 | . . . . . . 96 . 80 . . . . . . . 71 638 603 . Flight 3290 | . . . . 933 119 1463 439 . . . . . . . 184 65 . 87 . Fastest Speed 23 | 50 110 95 114 24 23 23 39 39 74 74 124 86 86 86 86 64 64 96 50 Average Speed 97 | 149 137 119 127 87 23 49 58 69 74 79 186 137 86 86 86 74 66 112 142 Slowest Speed 330 | 160 160 240 330 250 24 161 92 74 74 124 196 196 86 86 86 86 115 162 177 Overloaded Moves . | . . . . . . . . . . . . . . . . . . . . Propulsion Burnouts . | . . . . . . . . . . . . . . . . . . . . Robots Hopped 8 | . . . . 3 . 4 1 . . . . . . . . . . . . Potential Cave-ins 36 | . . . . . . . . . . . . . . . . . . . 36 Cave-ins Triggered 4 | . . . . 1 . . . . . . . . . . . . . . 3 Teleports 2 | . . . . . . . . . . . . . . . . . . . 2 Exploration Rate (%) 53 | 6 92 93 39 56 28 98 32 68 48 88 45 23 65 37 77 35 29 95 24 Regions Visited 19 Branch Regions 13 Pre-discovered Areas 7 | . 2 2 . . . . . . . 3 . . . . . . . . . Known Exits Taken 9 | . . 1 1 1 1 1 1 . . . . 1 . . . 1 . 1 . Unknown Exits Taken 10 | 1 1 . . . . . . 1 1 1 1 . 1 1 1 . 1 . . Scrap Searched 10 | . . 5 . . . . . 2 1 . 1 . 1 . . . . . . Spaces Dug 50 | . . 4 6 25 . 2 1 . . . . 3 . . 1 1 4 . 3 Terrain Destroyed 842 | . 25 196 6 52 . 78 183 19 6 6 10 46 . 7 31 6 43 84 44 Melee 36 | . . 4 6 25 . 1 . . . . . . . . . . . . . Projectile 326 | . . 3 . 13 . 18 61 19 6 6 7 45 . 7 29 6 36 26 44 AOE 480 | . 25 189 . 14 . 59 122 . . . 3 1 . . 2 . 7 58 . Terrain Rammed . | . . . . . . . . . . . . . . . . . . . . Walls Destroyed . | . . . . . . . . . . . . . . . . . . . . Machines Disabled . | . . . . . . . . . . . . . . . . . . . . Actions | -11 -10 -10 -8 -7 -7 -7 -5 -5 -5 -5 -4 -4 -4 -4 -4 -3 -3 -3 -3 --------- Run | Yrd Mat Sub Mat Fac Sto Rec Fac Upp Upp Zhi Pro Fac Upp Upp War Pro Res Qua Frg Total 23776 | 136 1348 2643 958 3251 129 4068 1738 489 309 335 295 1134 215 236 915 309 981 2553 1734 Wait 4541 | . 519 81 53 198 . 1896 177 9 4 46 2 89 . 14 90 154 145 632 432 Move 16763 | 105 747 2323 769 2727 118 1954 1356 421 279 245 256 857 215 193 678 135 711 1687 987 Hop 8 | . . . . 3 . 4 1 . . . . . . . . . . . . Pick Up 204 | 4 7 41 13 29 . 17 17 12 1 9 5 13 . . 8 . 8 11 9 Fast Attach 146 | 7 2 18 13 23 1 3 10 1 2 3 . 12 . 2 12 . 8 21 8 Attach 73 | . 2 10 4 12 . 5 6 1 . 2 1 4 . . 3 1 3 5 14 Detach 68 | . 2 4 5 5 . 15 7 1 . . 3 2 . . 5 1 1 12 5 Swap 83 | . 2 13 9 18 2 2 . 4 1 2 1 6 . 2 3 1 3 4 10 Drop 229 | . . 28 13 25 2 20 12 12 1 11 8 22 . . 21 . 15 31 8 Fire 1331 | 20 67 75 4 57 . 115 152 28 21 16 19 129 . 25 95 17 86 149 256 Melee 300 | . . 42 75 146 6 31 . . . . . . . . . . . . . Ram . | . . . . . . . . . . . . . . . . . . . . Kick 1 | . . . . . . . . . . . . . . . . . . . 1 Crush 2 | . . . . . . . . . . . . . . . . . . 1 1 Escape Stasis 13 | . . . . 8 . . . . . 1 . . . . . . 1 . 3 Rewire 6 | . . . . . . 6 . . . . . . . . . . . . . Trap . | . . . . . . . . . . . . . . . . . . . . Miscellaneous 8 | . . 8 . . . . . . . . . . . . . . . . . Route ------- -11/Scrapyard -10/Materials (discovered 6 exits: *Mat x3 / *Min x2 / *Sub) -10/Subcaves (discovered 2 exits: *Mat / Rec) -8/Materials (discovered 2 exits: *Fac x2) -7/Factory (discovered 5 exits: *Fac x2 / *Sto / *Low x2) -7/Storage -7/Recycling -5/Factory -5/Upper Caves -5/Upper Caves -5/Zhirov -4/Proximity Caves -4/Factory (discovered 3 exits: Res x2 / *Upp) -4/Upper Caves -4/Upper Caves (discovered 2 exits: *Res / *War) -4/Warlord -3/Proximity Caves -3/Research (discovered 3 exits: Res x2 / *Qua) -3/Quarantine (discovered 3 exits: *Res / *Sec / *Frg) -3/Protoforge (discovered 1 exit: *Res) History --------- Turn | Location | Event 6 | -11/Scrapyard | Discovered new exit (range 15) 229 | -11/Scrapyard | Entered Materials 306 | -10/Materials | Build established: Mutant 384 | -10/Materials | Discovered new exit (range 16) 1106 | -10/Materials | Discovered new exit (range 9) 1108 | -10/Materials | Discovered new exit (range 16) 1273 | -10/Materials | Discovered new exit (range 16) 1358 | -10/Materials | Identified exit to Materials 1358 | -10/Materials | Identified exit to Mines 1413 | -10/Materials | Learned location of Mines (-10) 1521 | -10/Materials | Learned location of 1 exit from Recycling 1592 | -10/Materials | Learned Materials stockpile data 1635 | -10/Materials | Learned location of 1 exit from Recycling 1707 | -10/Materials | Prayed at D.C.S.S. Altar Unit 1901 | -10/Materials | X0-1V1 sent hostile S-10 Pest (x3) 1902 | -10/Materials | Core integrity fell below 50% 1976 | -10/Materials | Entered Subcaves 1977 | -10/Subcaves | Approached by a straggling Scientist 1977 | -10/Subcaves | Identified exit to Materials 1977 | -10/Subcaves | Identified exit to Recycling 1992 | -10/Subcaves | Learned location of Zion (-7) 2021 | -10/Subcaves | X0-1V1 sent hostile G-34 Mercenary (x5) 2025 | -10/Subcaves | Ambushed by Subdweller buried in earth 2074 | -10/Subcaves | Destroyed 8 combat bots 2378 | -10/Subcaves | Shifting Twisted Machinery released Mak. Laser 2396 | -10/Subcaves | Shifting Twisted Machinery released Flamer 2528 | -10/Subcaves | Lost 3 parts (1n1u1w) 2807 | -10/Subcaves | Core integrity fell below 20% 2835 | -10/Subcaves | Lost 3 parts (1n1u1w) 2913 | -10/Subcaves | X0-1V1 activates XOMVISION 3090 | -10/Subcaves | Inventory capacity permanently improved by X0-1V1 (+1; -100 max core) 3107 | -10/Subcaves | Build established: Subdweller-Mutant 3311 | -10/Subcaves | Core integrity restored by X0-1V1 (+43) 3321 | -10/Subcaves | X0-1V1 activates XOMVISION 3372 | -10/Subcaves | Core integrity restored by X0-1V1 (+43) 3534 | -10/Subcaves | Ambushed by Subdweller buried in earth 3550 | -10/Subcaves | Core integrity restored by X0-1V1 (+43) 3556 | -10/Subcaves | System corruption reached 10% 3561 | -10/Subcaves | X0-1V1 mutated your Propulsion slot to Utility slot 3584 | -10/Subcaves | X0-1V1 sent hostile S-10 Pest (x5) 3634 | -10/Subcaves | X0-1V1 mutated your Utility slot to Weapon slot 3638 | -10/Subcaves | X0-1V1 tapped a No Entrance sign 3668 | -10/Subcaves | X0-1V1 sent hostile S-10 Pest (x5) 3703 | -10/Subcaves | X0-1V1 mutated your Weapon slot to Propulsion slot 3714 | -10/Subcaves | Weapon slot count temporarily expanded by X0-1V1 (+4) 3732 | -10/Subcaves | X0-1V1 sent you into danger 3757 | -10/Subcaves | X0-1V1 sent hostile G-34 Mercenary (x3) 3793 | -10/Subcaves | System corruption reached 30% 3805 | -10/Subcaves | X0-1V1 mutated your Weapon slot to Utility slot 3808 | -10/Subcaves | X0-1V1 activates XOMVISION 3813 | -10/Subcaves | Core integrity restored by X0-1V1 (+40) 3837 | -10/Subcaves | Shifting Twisted Machinery released Flamer 3846 | -10/Subcaves | Shifting Twisted Machinery released Sub. Optics 3870 | -10/Subcaves | Shifting Twisted Machinery released Barrage Gun 3878 | -10/Subcaves | Visited triangular shrine 3887 | -10/Subcaves | Found Prototype Device 3887 | -10/Subcaves | Identified V3-11A's Pendant 3892 | -10/Subcaves | Befriended Subdweller 3989 | -10/Subcaves | X0-1V1 sent hostile S-10 Pest (x4) 4031 | -10/Subcaves | Visited 4L-MR0's lab 4032 | -10/Subcaves | Learned 4 Materials zone layouts 4037 | -10/Subcaves | Found Prototype Device 4043 | -10/Subcaves | Found Gun Armor 4068 | -10/Subcaves | Approached by friendly Subdweller 4209 | -10/Subcaves | Ambushed by Subdweller buried in earth 4212 | -10/Subcaves | Befriended Subdweller 4216 | -10/Subcaves | Ambushed by Subdweller buried in earth 4217 | -10/Subcaves | Befriended Subdweller 4247 | -10/Subcaves | Befriended Subdweller 4257 | -10/Subcaves | Ambushed by Subdweller buried in earth 4330 | -10/Subcaves | Build established: Mutant 4476 | -10/Subcaves | X0-1V1 rewrote 9A-D8G(R) IFF filter 4477 | -10/Subcaves | Befriended Subdweller 4507 | -10/Subcaves | Befriended Subdweller 4522 | -10/Subcaves | Befriended Subdweller 4826 | -10/Subcaves | X0-1V1 mutated your Propulsion slot to Weapon slot 4975 | -10/Subcaves | Shifting Twisted Machinery released Mak. Power Source 4980 | -10/Subcaves | Core integrity restored by X0-1V1 (+31) 5133 | -10/Subcaves | X0-1V1 rewrote 4C-F41(R) IFF filter 5194 | -10/Subcaves | X0-1V1 mutated your Weapon slot to Power slot 5204 | -10/Subcaves | X0-1V1 rewrote 2D-S1E(R) IFF filter 5207 | -10/Subcaves | Befriended Subdweller 5219 | -10/Subcaves | Entered Materials 5219 | -8/Materials | Accompanied by 2 allies 5219 | -8/Materials | Evolved 4 slots: Propulsion x3, Utility x1 5224 | -8/Materials | Identified exit to Factory 5224 | -8/Materials | X0-1V1 revealed exit location to -7/Factory 5226 | -8/Materials | X0-1V1 announced a LAN party 5237 | -8/Materials | Melee accuracy permanently improved by X0-1V1 (+5%; -50 max core) 5242 | -8/Materials | X0-1V1 activates XOMVISION 5266 | -8/Materials | X0-1V1 upgraded hostiles (x1) 5271 | -8/Materials | X0-1V1 foreshadows a heat wave 5272 | -8/Materials | X0-1V1 sent you to a vault 5273 | -8/Materials | X0-1V1 mutated your Utility slot to Weapon slot 5275 | -8/Materials | Identified Sfc. Transmogrifier 5411 | -8/Materials | X0-1V1 added 0b10 threat records associated with you (major) 5534 | -8/Materials | Lost 4 allies 5545 | -8/Materials | Ambient heat levels rising (+10) 5621 | -8/Materials | Lost 4 parts (3n1w) 5768 | -8/Materials | Ambient heat levels rising (+10) 5780 | -8/Materials | X0-1V1 mutated your Weapon slot to Propulsion slot 5881 | -8/Materials | Discovered exit to Factory (range 11) 5885 | -8/Materials | Build established: Scavenger-Mutant 5891 | -8/Materials | Ambient heat levels falling (-10) 6007 | -8/Materials | Ambient heat levels falling (-10) 6051 | -8/Materials | Core integrity fell below 50% 6233 | -8/Materials | System corruption reached 10% 6505 | -8/Materials | Entered Factory 6505 | -7/Factory | Evolved 2 slots: Propulsion x1, Weapon x1 6719 | -7/Factory | Build established: Mutant 6925 | -7/Factory | X0-1V1 redirected Transport squads to designated parking area 7088 | -7/Factory | X0-1V1 enhanced Transport squad support 7130 | -7/Factory | Imp. Titanium Leg reconfigured into Item Mimic 7263 | -7/Factory | Ranged accuracy permanently improved by X0-1V1 (+5%; -50 max core) 7277 | -7/Factory | X0-1V1 added 0b10 threat records associated with you (minor) 7480 | -7/Factory | Discovered new exit (range 2) 7504 | -7/Factory | Discovered new exit (range 7) 7522 | -7/Factory | X0-1V1 announced a LAN party 7690 | -7/Factory | Found Prototype Launcher 7690 | -7/Factory | Identified Rocket Array 7781 | -7/Factory | X0-1V1 vaporized surrounding terrain (radius 19) 7812 | -7/Factory | X0-1V1 sent you to a vault 7860 | -7/Factory | Hacker 4c assimilated hostile W-25 Informer 7956 | -7/Factory | Build established: Hauler-Mutant 8186 | -7/Factory | Core integrity restored by X0-1V1 (+110) 8241 | -7/Factory | Cargo convoy interrupted 8567 | -7/Factory | Build established: Mutant 8905 | -7/Factory | First assault squad dispatched 9301 | -7/Factory | Garrison activated, responded to threat 9333 | -7/Factory | X0-1V1 upgraded hostiles (x3) 9345 | -7/Factory | Crushed by falling debris 9345 | -7/Factory | System corruption reached 10% 9359 | -7/Factory | Core integrity fell below 50% 9367 | -7/Factory | Destroyed 8 combat bots 9397 | -7/Factory | Lost 9 parts (1p4n2u2w) 9411 | -7/Factory | Core integrity fell below 20% 9449 | -7/Factory | X0-1V1 whisked you away to safety 9461 | -7/Factory | Core integrity restored by X0-1V1 (+85) 9488 | -7/Factory | Hyb. Fission Core reconfigured into Item Mimic 9511 | -7/Factory | X0-1V1 sent allied L-41 Fighter (x4) 9614 | -7/Factory | Core integrity restored by X0-1V1 (+125) 9656 | -7/Factory | X0-1V1 activates XOMVISION 9744 | -7/Factory | Discovered new exit (range 7) 9773 | -7/Factory | X0-1V1 activates XOMVISION 9784 | -7/Factory | Identified exit to Factory 9784 | -7/Factory | X0-1V1 revealed exit location to -6/Factory 9796 | -7/Factory | Identified exit to Storage 9796 | -7/Factory | Identified exit to Lower Caves 9810 | -7/Factory | Entered Storage 9859 | -7/Storage | Used back door to open Recycling access 9860 | -7/Storage | Entered Recycling 9861 | -7/Recycling | Identified exit to Factory 9880 | -7/Recycling | X0-1V1 activates XOMVISION 9989 | -7/Recycling | Build established: Hacker-Sprinter 10004 | -7/Recycling | X0-1V1 activates XOMVISION 10070 | -7/Recycling | Weapon slot count temporarily expanded by X0-1V1 (+2) 10092 | -7/Recycling | X0-1V1 turns hostiles against one another 10123 | -7/Recycling | Lost 3 parts (2n1u) 10237 | -7/Recycling | X0-1V1 activates XOMVISION 10267 | -7/Recycling | X0-1V1 added 0b10 threat records associated with you (considerable) 10280 | -7/Recycling | X0-1V1 sent you into danger 10304 | -7/Recycling | Core integrity restored by X0-1V1 (+100) 10425 | -7/Recycling | Build established: Sprinter 10434 | -7/Recycling | X0-1V1 mutated your Propulsion slot to Utility slot 10465 | -7/Recycling | X0-1V1 mutated your Utility slot to Weapon slot 10597 | -7/Recycling | Entered Scraplab 10598 | -7/Recycling | Found Prototype Device 10598 | -7/Recycling | Identified Scrap Engine 10857 | -7/Recycling | X0-1V1 mutated your Weapon slot to Propulsion slot 10909 | -7/Recycling | Core integrity restored by X0-1V1 (+140) 11301 | -7/Recycling | Build established: Construct 11485 | -7/Recycling | X0-1V1 activates XOMVISION 12548 | -7/Recycling | X0-1V1 activates XOMVISION 13096 | -7/Recycling | Entered Factory 13096 | -5/Factory | Evolved 4 slots: Utility x3, Weapon x1 13208 | -5/Factory | Garrison activated, responded to threat 13229 | -5/Factory | X0-1V1 added 0b10 threat records associated with you (minor) 13316 | -5/Factory | X0-1V1 sent hostile G-50 Soldier (x3) 13390 | -5/Factory | X0-1V1 redirected Transport squads to designated parking area 13396 | -5/Factory | First assault squad dispatched 13401 | -5/Factory | X0-1V1 mutated your Utility slot to Propulsion slot 13812 | -5/Factory | Discovered new exit (range 13) 14243 | -5/Factory | Spotted B-75 Beast 14252 | -5/Factory | X0-1V1 downgraded hostiles (x1) 14263 | -5/Factory | X0-1V1 mutated your Propulsion slot to Utility slot 14391 | -5/Factory | Identified exit to Upper Caves 14392 | -5/Factory | Entered Upper Caves 14509 | -5/Upper Caves | Attracted the attention of an 0b10 checkpoint 14617 | -5/Upper Caves | X0-1V1 sent hostile Fireman (x3) 14665 | -5/Upper Caves | X0-1V1 sent hostile X-67 Chaingunner (x2) 14681 | -5/Upper Caves | X0-1V1 mutated your Utility slot to Weapon slot 14696 | -5/Upper Caves | Learned 12 Factory zone layouts 14733 | -5/Upper Caves | Learned location of 1 exit from Factory 14765 | -5/Upper Caves | Discovered new exit (range 10) 14772 | -5/Upper Caves | Entered another Upper Caves area 14919 | -5/Upper Caves | Learned location of 1 exit from Factory 14986 | -5/Upper Caves | Attracted the attention of an 0b10 checkpoint 15022 | -5/Upper Caves | Discovered new exit (range 5) 15026 | -5/Upper Caves | Entered Zhirov 15026 | -5/Zhirov | Discovered new exit (range 3) 15084 | -5/Zhirov | Met Zhirov 15097 | -5/Zhirov | Learned location of Quarantine (-3) 15097 | -5/Zhirov | Learned location of Testing (-2) 15097 | -5/Zhirov | Learned location of Command (-1) 15111 | -5/Zhirov | Zhirov requested help retrieving the SGEMP Prototype 15122 | -5/Zhirov | Found Alien Artifact 15132 | -5/Zhirov | Found Alien Artifact 15132 | -5/Zhirov | Identified Integrated Dissipator 15132 | -5/Zhirov | Installed Integrated Dissipator, increased core heat dissipation (+20) 15198 | -5/Zhirov | Attacked by Zhirov 15201 | -5/Zhirov | Cloak Generator disabled 15212 | -5/Zhirov | Enhanced Grunts warped into view 15218 | -5/Zhirov | System corruption reached 10% 15220 | -5/Zhirov | Zhirov warped through subspace 15229 | -5/Zhirov | Zhirov detonated his lab 15260 | -5/Zhirov | Lost 5 allies 15319 | -5/Zhirov | Entered Proximity Caves 15372 | -4/Proximity Caves | X0-1V1 upgraded hostiles (x2) 15545 | -4/Proximity Caves | Core integrity restored by X0-1V1 (+152) 15682 | -4/Proximity Caves | Learned 12 Research zone layouts 15813 | -4/Proximity Caves | Learned Research emergency access door positions 15829 | -4/Proximity Caves | Discovered new exit (range 9) 15843 | -4/Proximity Caves | X0-1V1 mutated your Weapon slot to Propulsion slot 15847 | -4/Proximity Caves | Entered Factory 15847 | -4/Factory | Evolved 2 slots: Utility x2 15848 | -4/Factory | Identified exit to Research 15849 | -4/Factory | Identified exit to Upper Caves 16095 | -4/Factory | Assembled infested ambush trap array 16104 | -4/Factory | X0-1V1 redirected Transport squads to designated parking area 16173 | -4/Factory | Destroyed 13 combat bots 16332 | -4/Factory | Found Prototype Device 16332 | -4/Factory | Identified Exp. ECM Suite 16340 | -4/Factory | Found Exp. ECM Suite 16428 | -4/Factory | X0-1V1 sent allied P-70 Sage (x2) 17201 | -4/Factory | X0-1V1 enhanced Transport squad support 17347 | -4/Factory | First assault squad dispatched 17374 | -4/Factory | X0-1V1 sent hostile G-67 Veteran (x5) 17413 | -4/Factory | Entered Upper Caves 17414 | -4/Upper Caves | Encountered a Warlord checkpoint 17463 | -4/Upper Caves | Spotted B-86 Titan 17503 | -4/Upper Caves | System corruption reached 10% 17536 | -4/Upper Caves | Learned Research non-interactive machine intel 17547 | -4/Upper Caves | X0-1V1 vaporized surrounding terrain (radius 22) 17591 | -4/Upper Caves | Discovered new exit (range 10) 17598 | -4/Upper Caves | Entered another Upper Caves area 17617 | -4/Upper Caves | X0-1V1 sent hostile Fireman (x3) 17630 | -4/Upper Caves | Discovered exit to Research (range 5) 17677 | -4/Upper Caves | X0-1V1 downgraded hostiles (x3) 17682 | -4/Upper Caves | X0-1V1 sent allied Wasp (x4) 17751 | -4/Upper Caves | Lost 4 allies 17757 | -4/Upper Caves | X0-1V1 whisked you away to safety 17821 | -4/Upper Caves | Discovered new exit (range 11) 17829 | -4/Upper Caves | Entered Warlord 17858 | -4/Warlord | System corruption cleaned by Quarantine Array 17910 | -4/Warlord | Visited the Vortex Lab 17919 | -4/Warlord | Found Prototype Energy Cannon 17921 | -4/Warlord | Warlord's base attacked by MAIN.C 17921 | -4/Warlord | Found Prototype Energy Cannon 17995 | -4/Warlord | Met Warlord 18101 | -4/Warlord | Found Prototype Processor 18101 | -4/Warlord | Identified Exp. Core Analyzer 18109 | -4/Warlord | Found Prototype Device 18109 | -4/Warlord | Identified Exp. Phase Shifter 18116 | -4/Warlord | X0-1V1 mutated your Propulsion slot to Weapon slot 18207 | -4/Warlord | Spotted B-90 Cyclops 18243 | -4/Warlord | Warlord forces counterattacked 18300 | -4/Warlord | Lost 3 allies 18302 | -4/Warlord | Spotted Striker 18348 | -4/Warlord | Spotted Striker 18370 | -4/Warlord | Spotted Striker 18373 | -4/Warlord | Destroyed Striker 18387 | -4/Warlord | Spotted Striker 18433 | -4/Warlord | Discovered new exit (range 14) 18483 | -4/Warlord | Lost 9 allies 18497 | -4/Warlord | Core integrity restored by X0-1V1 (+152) 18525 | -4/Warlord | Weapon slot count temporarily expanded by X0-1V1 (+1) 18525 | -4/Warlord | Spotted Striker 18526 | -4/Warlord | Spotted Executioner 18529 | -4/Warlord | Spotted Striker 18558 | -4/Warlord | Destroyed Striker 18561 | -4/Warlord | Destroyed Striker 18589 | -4/Warlord | Destroyed 11 combat bots 18591 | -4/Warlord | Lost 10 allies 18596 | -4/Warlord | Warlord base infiltrated, sounded retreat 18603 | -4/Warlord | Found Corrupted Exp. Core Analyzer 18621 | -4/Warlord | Spotted Executioner 18721 | -4/Warlord | Spotted Executioner 18721 | -4/Warlord | Entered Proximity Caves 18963 | -3/Proximity Caves | Attracted the attention of an 0b10 checkpoint 18978 | -3/Proximity Caves | Build established: Scavenger-Construct 19007 | -3/Proximity Caves | Discovered exit to Research (range 6) 19010 | -3/Proximity Caves | Entered Research 19010 | -3/Research | Evolved 2 slots: Propulsion x1, Utility x1 19011 | -3/Research | Identified exit to Research 19013 | -3/Research | Loaded intel: 57 non-interactive machine locations 19069 | -3/Research | X0-1V1 downgraded hostiles (x1) 19095 | -3/Research | X0-1V1 revealed exit location to -2/Research 19280 | -3/Research | X0-1V1 activates XOMVISION 19289 | -3/Research | X0-1V1 sent you into danger 19344 | -3/Research | X0-1V1 added 0b10 threat records associated with you (major) 19396 | -3/Research | X0-1V1 sent you to a vault 19398 | -3/Research | X0-1V1 sent you into danger 19430 | -3/Research | X0-1V1 vaporized surrounding terrain (radius 23) 19493 | -3/Research | X0-1V1 tapped a No Entrance sign 19586 | -3/Research | System corruption reached 10% 19587 | -3/Research | Spotted B-90 Cyclops 19612 | -3/Research | X0-1V1 redirected Transport squads to designated parking area 19654 | -3/Research | Destroyed B-90 Cyclops 19663 | -3/Research | Discovered new exit (range 16) 19729 | -3/Research | Spotted B-86 Titan 19729 | -3/Research | X0-1V1 sent you into danger 19734 | -3/Research | X0-1V1 turns hostiles against one another 19741 | -3/Research | Destroyed B-86 Titan 19760 | -3/Research | First assault squad dispatched 19816 | -3/Research | Entered Quarantine 19822 | -3/Quarantine | X0-1V1 sent someone to fix up the mess you leave 19905 | -3/Quarantine | X0-1V1 downgraded hostiles (x1) 19915 | -3/Quarantine | Found Prototype Processor 19915 | -3/Quarantine | Identified Spectral Analyzer 19995 | -3/Quarantine | Found Alien Artifact 20012 | -3/Quarantine | Found Alien Artifact 20014 | -3/Quarantine | Found Alien Artifact 20015 | -3/Quarantine | Identified Vortex Cannon (x2) 20070 | -3/Quarantine | X0-1V1 revealed exit location to -2/Research 20120 | -3/Quarantine | Identified exit to Protoforge 20120 | -3/Quarantine | X0-1V1 revealed exit location to -3/Protoforge 20144 | -3/Quarantine | Build established: Construct 20239 | -3/Quarantine | Cryocooling Duct disabled 20254 | -3/Quarantine | Ambient heat levels rising (+20) 20254 | -3/Quarantine | Non-combat units ordered to evacuate 20261 | -3/Quarantine | Cryocooling Duct disabled 20276 | -3/Quarantine | Ambient heat levels rising (+20) 20276 | -3/Quarantine | Combat units ordered to evacuate 20376 | -3/Quarantine | Quarantine Guard activated 20524 | -3/Quarantine | Found Alien Artifact 20524 | -3/Quarantine | Identified Phase Armor 20623 | -3/Quarantine | Spotted Quarantine Guard 20647 | -3/Quarantine | X0-1V1 sent you to a vault 20653 | -3/Quarantine | Spotted Quarantine Guard 20656 | -3/Quarantine | Destroyed Quarantine Guard 20661 | -3/Quarantine | Spotted Quarantine Guard 20671 | -3/Quarantine | Destroyed Quarantine Guard 20713 | -3/Quarantine | Lost 3 allies 20768 | -3/Quarantine | Spotted Quarantine Guard 20771 | -3/Quarantine | Destroyed Quarantine Guard 20812 | -3/Quarantine | Spotted Quarantine Guard 20822 | -3/Quarantine | Spotted Quarantine Guard 20831 | -3/Quarantine | Destroyed Quarantine Guard 20838 | -3/Quarantine | Destroyed Quarantine Guard 20901 | -3/Quarantine | Spotted Quarantine Guard 20917 | -3/Quarantine | Destroyed Quarantine Guard 21103 | -3/Quarantine | Identified exit to Section 7 21103 | -3/Quarantine | X0-1V1 revealed exit location to -3/Section 7 21158 | -3/Quarantine | Destroyed Quarantine Guard 21346 | -3/Quarantine | X0-1V1 activates XOMVISION 21478 | -3/Quarantine | Spotted Quarantine Guard 21488 | -3/Quarantine | Destroyed Quarantine Guard 21506 | -3/Quarantine | Found Alien Reactor 21506 | -3/Quarantine | Identified Matter Drive 21531 | -3/Quarantine | Spotted Quarantine Guard 21571 | -3/Quarantine | Destroyed Quarantine Guard 21572 | -3/Quarantine | X0-1V1 activates XOMVISION 21672 | -3/Quarantine | Spotted Quarantine Guard 21694 | -3/Quarantine | Destroyed Quarantine Guard 21822 | -3/Quarantine | Found Alien Artifact 21888 | -3/Quarantine | Found Alien Artifact 22019 | -3/Quarantine | X0-1V1 activates XOMVISION 22108 | -3/Quarantine | Spotted Fortress 22157 | -3/Quarantine | Destroyed Fortress 22389 | -3/Quarantine | X0-1V1 mutated your Weapon slot to Propulsion slot 22592 | -3/Quarantine | X0-1V1 announced a LAN party 22639 | -3/Quarantine | Forcibly received Sfc. Transmogifier from X0-1V1 22664 | -3/Quarantine | Spotted Quarantine Guard 22664 | -3/Quarantine | Spotted Quarantine Guard 22671 | -3/Quarantine | Destroyed Quarantine Guard 22679 | -3/Quarantine | Destroyed Quarantine Guard 22692 | -3/Quarantine | Entered Protoforge 22726 | -3/Protoforge | Spotted Hotshot 22729 | -3/Protoforge | Spotted Hotshot 22729 | -3/Protoforge | Superfortress began startup sequence 22732 | -3/Protoforge | Destroyed Hotshot 22733 | -3/Protoforge | Spotted Hotshot 22735 | -3/Protoforge | Spotted Hotshot 22774 | -3/Protoforge | Destroyed Hotshot 22785 | -3/Protoforge | Destroyed Hotshot 22800 | -3/Protoforge | Destroyed Hotshot 22822 | -3/Protoforge | Spotted Hotshot 22824 | -3/Protoforge | Destroyed Hotshot 22881 | -3/Protoforge | Spotted Hotshot 22906 | -3/Protoforge | Spotted Hotshot 22907 | -3/Protoforge | Spotted Hotshot 22907 | -3/Protoforge | Destroyed Hotshot 22908 | -3/Protoforge | Spotted Hotshot 22917 | -3/Protoforge | Destroyed Hotshot 22927 | -3/Protoforge | Spotted Hotshot 22927 | -3/Protoforge | Spotted Hotshot 22930 | -3/Protoforge | Spotted Hotshot 22933 | -3/Protoforge | Destroyed Hotshot 22936 | -3/Protoforge | Spotted Hotshot 22938 | -3/Protoforge | Spotted Hotshot 22942 | -3/Protoforge | First assault squad dispatched 22953 | -3/Protoforge | Destroyed Hotshot 22954 | -3/Protoforge | Destroyed Hotshot 22957 | -3/Protoforge | Destroyed Hotshot 22961 | -3/Protoforge | Spotted Overlord 22971 | -3/Protoforge | Spotted Immortal 22972 | -3/Protoforge | Spotted Immortal 22974 | -3/Protoforge | Destroyed Hotshot 22978 | -3/Protoforge | Spotted Immortal 22984 | -3/Protoforge | X0-1V1 sent allied Striker (x1) 22994 | -3/Protoforge | Destroyed Immortal 22998 | -3/Protoforge | Destroyed Immortal 23017 | -3/Protoforge | Destroyed Immortal 23032 | -3/Protoforge | Destroyed Hotshot 23035 | -3/Protoforge | Destroyed Hotshot 23040 | -3/Protoforge | Spotted B-86 Titan 23046 | -3/Protoforge | Destroyed B-86 Titan 23051 | -3/Protoforge | X0-1V1 upgraded hostiles (x1) 23053 | -3/Protoforge | Destroyed Overlord 23082 | -3/Protoforge | Destroyed 30 combat bots 23246 | -3/Protoforge | X0-1V1 turns hostiles against one another 23311 | -3/Protoforge | X0-1V1 announced a LAN party 23348 | -3/Protoforge | X0-1V1 mutated your Propulsion slot to Utility slot 23492 | -3/Protoforge | Discovered exit to Research (range 16) 23791 | -3/Protoforge | Core integrity restored by X0-1V1 (+286) 23864 | -3/Protoforge | Found Prototype Device 23864 | -3/Protoforge | Identified Cep. Antimissile System 23867 | -3/Protoforge | Found Cep. Antimissile System 24180 | -3/Protoforge | Identified Terrabomb 24180 | -3/Protoforge | Used Terrabomb 24180 | -3/Protoforge | Additional patrols dispatched to research labs 24180 | -3/Protoforge | Spotted Immortal 24180 | -3/Protoforge | Spotted Immortal 24180 | -3/Protoforge | Spotted Immortal 24196 | -3/Protoforge | Crushed by falling debris 24204 | -3/Protoforge | X0-1V1 sent you to a vault 24315 | -3/Protoforge | Spotted Hotshot 24315 | -3/Protoforge | Spotted Hotshot 24315 | -3/Protoforge | Spotted Hotshot 24315 | -3/Protoforge | Spotted Hotshot 24441 | -3/Protoforge | Crushed by falling debris 24447 | -3/Protoforge | Crushed by falling debris 24522 | -3/Protoforge | Found Prototype Device 24522 | -3/Protoforge | Identified Crosscalibrator 24527 | -3/Protoforge | Identified Transdimensional Reconstructor 24558 | -3/Protoforge | Spotted Immortal 24559 | -3/Protoforge | X0-1V1 mutated your Utility slot to Propulsion slot 24584 | -3/Protoforge | Spotted Decapitator 24587 | -3/Protoforge | Spotted Decapitator 24587 | -3/Protoforge | Spotted Decapitator 24593 | -3/Protoforge | Destroyed Decapitator 24599 | -3/Protoforge | Destroyed Decapitator 24606 | -3/Protoforge | Destroyed Decapitator 24646 | -3/Protoforge | Spotted Decapitator 24647 | -3/Protoforge | Spotted Decapitator 24647 | -3/Protoforge | Spotted Decapitator 24648 | -3/Protoforge | Spotted Immortal 24648 | -3/Protoforge | Spotted Decapitator 24648 | -3/Protoforge | Spotted Decapitator 24648 | -3/Protoforge | Spotted Decapitator 24649 | -3/Protoforge | Spotted Decapitator 24652 | -3/Protoforge | Destroyed Decapitator 24658 | -3/Protoforge | Destroyed Decapitator 24659 | -3/Protoforge | Destroyed Decapitator 24661 | -3/Protoforge | Destroyed Decapitator 24712 | -3/Protoforge | Core integrity fell below 50% 24766 | -3/Protoforge | Found Cep. Antigrav Storage Unit 24769 | -3/Protoforge | Found Cep. Chromion Battery 24776 | -3/Protoforge | Spotted V001-q 24781 | -3/Protoforge | Spotted V818-r 24784 | -3/Protoforge | Spotted V878-k 24799 | -3/Protoforge | Identified Dimensional Node Initializer (x2) 24799 | -3/Protoforge | Initialized slip node 24800 | -3/Protoforge | Destroyed V818-r 24804 | -3/Protoforge | Weapon slot count temporarily expanded by X0-1V1 (+3) 24820 | -3/Protoforge | Destroyed V878-k 24838 | -3/Protoforge | Lost 6 parts (2p1n1u2w) 24889 | -3/Protoforge | Spotted V102-g 24900 | -3/Protoforge | Initialized slip node 24907 | -3/Protoforge | Identified Hpw. Transdimensional Reconstructor 24907 | -3/Protoforge | Warped through subspace to slip node 24922 | -3/Protoforge | Core integrity fell below 20% 24922 | -3/Protoforge | Warped through subspace 24924 | -3/Protoforge | Lost 3 parts (1n1u1w) 25028 | -3/Protoforge | X0-1V1 activates XOMVISION 25068 | -3/Protoforge | Destroyed by Hotshot with Improved Heavy Laser Last Messages --------------- 25044_ Biometal-Armored Exoskeleton core remains intact and functional. 25047_ Scrap Engine destroyed. 25047_ Biometal-Armored Exoskeleton destroyed. 25048_ Hotshot activates shielding mode. 25048_ Dropped Cep. Antigrav Storage Unit. 25048_ Discarded Vibroblade. 25049_ Dropped Vortex Cannon. 25050_ Acquired Protomatter-99. 25051_ Hotshot activates shielding mode. 25059_ X0-1V1 projects screaming human faces on all surfaces in the area (-16% melee accuracy). 25062_ T=00HSA3TEWKU%KYAATV2JXBQEFL/ 25064_ X0-1V1: "The ol' switcheroo!" Form resolidifies at new position. Hotshot form resolidifies at new position. 25065_ Adv. Cooling System destroyed. 25066_ Dropped Adv. Heat Sink. 25066_ Acquired Cep. Antigrav Storage Unit. 25068_ Critical hit (Burn: +37). 25068_ X0-1V1 chortles! Map ----- +----------------------------------------------------+ | ????????????????????????????????????### # | | ????????????????????????????????????### # ! | | ?????????????????????????????????????### #! | | ?????????????????????????????????????### #| | | ??????????????????????????????????????### # % | | ??????????????????????????????????????### # | | ???????????????????????????????????????### #% | | ???????????????????????????????????????#### #% | | ????????????????????????????????????????#### # | | ?????????????????????????????????????##########% % | | ????????????????????????????????????## # | | ????????????????????????????????????## #%% | | ????????????????????????############## + % | | ????????????????????????# / # | | ????????????????????????# ############ # | | ????????????????????????# #?########## # | | ????????????????????????# #?# ### # | | ????????????????????????# #?# ### # | | ????????????????????????# ### ### # | | ????????????????????????# /g ####+####### | | ?????????############???# ## """" #### ####### | | ?????????# !##%[ "#???# !## """" ####+####### | | ?????????# ## *=##???#!!## """" # ! ## | | ?????????# < ##% ######!!## """" # """ """ # | | ?????????# = % ^!!!!# g # """ """ # " | | ????????## % !@ ]# """" # """ """ + T | | ????????#" % "" ^ ! g """" # # | | ????????## " T"" ^ # """" # # | | ?????????# % """" g# """" # ##### | | ????????## """" # # ##### | | ???????### """" #####+####+########### | | ???????# % m """" ### ### ## """" # | | ???????# o "" # ""R" % | | ???????### % T" + "" " # | | ?????????# ########## ###### # | | ?????????# % ####+###??################# # | | ?????????# # ???????????????????## # | | ????????## #""??????????????????????#### ###### | | ????????## #????????????????????????########### | | ?????????# #?????????????????????????? ##??## | | ?????????# #?????????????????????????????????## | | ########## #""???????????????????????????????## | | [!*%%= !# #""????????????????????????????????? | | """%"""!# #""????????????????????????????????? | | !"""["""!# # ???????????????????????????????? | | % "/ [%" + #"#+##########?????????????????????? | | [ !*= # # """ #?????????????????????? | | =/= * # % # ""T"" #?????????????????????? | | %% %%!% %" # "" "%%+???+?????????????????? | | % !% %# # %#?????????????????????? | +----------------------------------------------------+ Best States ------------- Heat Dissipation 197 Coolant Potential 120 Energy Generation 73 Energy Capacity 3887 Matter Stores 1000 Matter Capacity 1000 Sight Range 29 Terrain Scan Range 16 Terrain Scan Density 10 Jamming Range 16 Armor Coverage 800 Resistance: KI 46 Resistance: TH 10 Phase Shifting 20 Evasion (%) 70 Melee Accuracy 5 Core Analysis 8 Recoil Reduction 7 Matter Filtering 50 Force Boost 20 Salvage Targeting 2 Offensive Hacking 10 Defensive Hacking 10 Item Schematics ----------------- Assault Drone Bay | -5/Zhirov | Free Exp. Heat Sink | -5/Zhirov | Free Exp. Optical Array | -5/Zhirov | Free Imp. Arc Thrower | -5/Zhirov | Free Robot Schematics ------------------ None Fabricated ------------ Nothing Repaired ---------- Nothing Studied --------- None Alien Tech Used ----------------- Integrated Dissipator Phase Armor Matter Drive Terrabomb Dimensional Node Initializer High-powered Transdimensional Reconstructor Transdimensional Reconstructor Achievements -------------- Definitely A Prototype Exposed SUBSUB Challenges ------------ None Game ------ Seed MultireflexImpulseChip Manual? 0 Play Time 04:37:41 Cumulative 298.5 hours Start 2026.07.21 @ 02:01:39 End 2026.07.22 @ 02:00:02 Sessions 5 Manual Loads 0 Difficulty Rogue Special Mode None Game No. 144 Rogue 144 Adventurer 0 Explorer 0 Win Type - Total 18 Types 14/1/1/1/0/0/0/0/0/1 Lore% 79 Gallery% 74 Achievement% 73 Wizard Run 0 Options --------- Layout 0 ASCII 0 Keyboard 1 Movement Arrows Keybinds 0 Fullscreen 2 Font 18/SmallcapsGlow Map View 76x50 Zoom Use 0% Tactical HUD 1 Map Filters NONE Filters NONE Steam 1 RUN: 5c1e93eb-ed1a-412a-86a3-9d1cd801c013